[Event "Live Chess"]
[Site "Chess.com"]
[Date "2023.05.21"]
[Round "-"]
[White "chessfiction"]
[Black "MJMykh"]
[Result "1-0"]
[WhiteElo "2312"]
[BlackElo "1168"]
[TimeControl "300"]
[EndTime "5:09:39 PDT"]
[Termination "chessfiction won by checkmate"]

1. e4 {[%clk 0:04:58.1]} 1... e5 {[%clk 0:04:58.6]} 2. d4 {[%clk 0:04:58]} 2...
exd4 {[%clk 0:04:57.5]} 3. Nf3 {[%clk 0:04:57.3]} 3... Nc6 {[%clk 0:04:56.7]} 4.
c3 {[%clk 0:04:56.6]} 4... dxc3 {[%clk 0:04:55.7]} 5. Nxc3 {[%clk 0:04:56.3]}
5... Nf6 {[%clk 0:04:55.2]} 6. Bc4 {[%clk 0:04:55.4]} 6... Bb4 {[%clk
0:04:54.2]} 7. Bg5 {[%clk 0:04:53.6]} 7... Bxc3+ {[%clk 0:04:53.1]} 8. bxc3
{[%clk 0:04:52.4]} 8... O-O {[%clk 0:04:52.3]} 9. O-O {[%clk 0:04:51.1]} 9... d6
{[%clk 0:04:51.1]} 10. h3 {[%clk 0:04:49.7]} 10... h6 {[%clk 0:04:50.5]} 11. Bh4
{[%clk 0:04:48.2]} 11... Qd7 {[%clk 0:04:43.9]} 12. Bxf6 {[%clk 0:04:46.8]}
12... gxf6 {[%clk 0:04:43.7]} 13. Nh4 {[%clk 0:04:45.4]} 13... Kh7 {[%clk
0:04:40.8]} 14. Qh5 {[%clk 0:04:41.1]} 14... Ne5 {[%clk 0:04:38.3]} 15. Nf5
{[%clk 0:04:38.9]} 15... Kg8 {[%clk 0:04:30.8]} 16. Qxh6 {[%clk 0:04:34.6]}
16... Nxc4 {[%clk 0:04:28.6]} 17. Qg7# {[%clk 0:04:33.4]} 1-0

[Event "Live Chess"]
[Site "Chess.com"]
[Date "2023.05.21"]
[Round "-"]
[White "Hacker_2009"]
[Black "yarek"]
[Result "1-0"]
[WhiteElo "1936"]
[BlackElo "1886"]
[TimeControl "300"]
[EndTime "5:09:42 PDT"]
[Termination "Hacker_2009 won on time"]

1. d4 {[%clk 0:04:59.1]} 1... g6 {[%clk 0:04:56.5]} 2. Nf3 {[%clk 0:04:57.9]}
2... Bg7 {[%clk 0:04:55.3]} 3. c4 {[%clk 0:04:57.5]} 3... c6 {[%clk 0:04:54.2]}
4. Nc3 {[%clk 0:04:57]} 4... d5 {[%clk 0:04:53]} 5. cxd5 {[%clk 0:04:55.5]} 5...
cxd5 {[%clk 0:04:51.8]} 6. Bf4 {[%clk 0:04:51.8]} 6... a6 {[%clk 0:04:39.3]} 7.
e3 {[%clk 0:04:45.3]} 7... Nf6 {[%clk 0:04:35.9]} 8. Be2 {[%clk 0:04:37.4]} 8...
Bg4 {[%clk 0:04:33.4]} 9. h3 {[%clk 0:04:31.8]} 9... Bxf3 {[%clk 0:04:32]} 10.
Bxf3 {[%clk 0:04:30]} 10... e6 {[%clk 0:04:31.4]} 11. O-O {[%clk 0:04:25.5]}
11... O-O {[%clk 0:04:29.1]} 12. Rc1 {[%clk 0:04:24.6]} 12... Nbd7 {[%clk
0:04:13.5]} 13. Na4 {[%clk 0:04:17.7]} 13... Rc8 {[%clk 0:04:09]} 14. Nc5 {[%clk
0:04:15.9]} 14... Nxc5 {[%clk 0:04:06.9]} 15. dxc5 {[%clk 0:04:13.9]} 15... Qa5
{[%clk 0:03:37.1]} 16. Bd6 {[%clk 0:04:10]} 16... Rfe8 {[%clk 0:03:26.5]} 17.
Qb3 {[%clk 0:04:03.1]} 17... Nd7 {[%clk 0:03:06.9]} 18. Qxb7 {[%clk 0:03:49.1]}
18... Nxc5 {[%clk 0:02:55]} 19. Bxc5 {[%clk 0:03:47.4]} 19... Rxc5 {[%clk
0:02:52.8]} 20. b4 {[%clk 0:03:46.5]} 20... Qb5 {[%clk 0:02:42.5]} 21. Qxb5
{[%clk 0:03:29.6]} 21... Rxb5 {[%clk 0:02:42.4]} 22. Rb1 {[%clk 0:03:25.6]}
22... Reb8 {[%clk 0:02:38.3]} 23. a3 {[%clk 0:03:21.9]} 23... a5 {[%clk
0:02:36]} 24. Be2 {[%clk 0:03:19.8]} 24... R5b7 {[%clk 0:02:24.3]} 25. b5 {[%clk
0:03:18.7]} 25... a4 {[%clk 0:02:04.6]} 26. Rb4 {[%clk 0:03:14.6]} 26... Ra8
{[%clk 0:01:58.6]} 27. Rc1 {[%clk 0:02:52.4]} 27... Bf8 {[%clk 0:01:48.5]} 28.
Rbb1 {[%clk 0:02:48.7]} 28... Bxa3 {[%clk 0:01:45.5]} 29. Rc6 {[%clk 0:02:39.1]}
29... Be7 {[%clk 0:01:30.2]} 30. b6 {[%clk 0:02:27.3]} 30... Rab8 {[%clk
0:01:24.3]} 31. Ba6 {[%clk 0:02:24.1]} 31... a3 {[%clk 0:00:51.6]} 32. Bxb7
{[%clk 0:02:20.7]} 32... Rxb7 {[%clk 0:00:51.5]} 33. Rc7 {[%clk 0:02:11.3]}
33... a2 {[%clk 0:00:45.7]} 34. Ra1 {[%clk 0:02:08.7]} 34... Rxb6 {[%clk
0:00:42.8]} 35. Rxa2 {[%clk 0:02:07.3]} 35... Bd6 {[%clk 0:00:38.8]} 36. Rc8+
{[%clk 0:02:04.9]} 36... Kg7 {[%clk 0:00:36.8]} 37. g3 {[%clk 0:02:04.5]} 37...
e5 {[%clk 0:00:33]} 38. Ra7 {[%clk 0:01:55]} 38... d4 {[%clk 0:00:25]} 39. exd4
{[%clk 0:01:53.3]} 39... exd4 {[%clk 0:00:23.5]} 40. Rd8 {[%clk 0:01:51.8]}
40... d3 {[%clk 0:00:20.6]} 41. Rad7 {[%clk 0:01:49.6]} 41... d2 {[%clk
0:00:10.7]} 42. Rxd6 {[%clk 0:01:48.1]} 42... Rb1+ {[%clk 0:00:10.2]} 43. Kg2
{[%clk 0:01:47.1]} 1-0

[Event "Live Chess"]
[Site "Chess.com"]
[Date "2023.05.21"]
[Round "-"]
[White "JoshMcK"]
[Black "TheAuditer"]
[Result "1-0"]
[WhiteElo "1561"]
[BlackElo "1393"]
[TimeControl "300"]
[EndTime "5:09:47 PDT"]
[Termination "JoshMcK won - game abandoned"]

1. e4 {[%clk 0:04:58.5]} 1... e6 {[%clk 0:04:59]} 2. d4 {[%clk 0:04:56.8]} 2...
d5 {[%clk 0:04:58.1]} 3. Nc3 {[%clk 0:04:55.3]} 3... Bb4 {[%clk 0:04:55.1]} 4.
e5 {[%clk 0:04:54.1]} 4... c5 {[%clk 0:04:53.8]} 5. a3 {[%clk 0:04:53.5]} 5...
Bxc3+ {[%clk 0:04:45.7]} 6. bxc3 {[%clk 0:04:53.4]} 6... Nc6 {[%clk 0:04:44.3]}
7. Qg4 {[%clk 0:04:50]} 7... Nge7 {[%clk 0:04:38.7]} 8. h4 {[%clk 0:04:41]} 8...
O-O {[%clk 0:04:36]} 9. Bd3 {[%clk 0:04:36.1]} 9... Nf5 {[%clk 0:04:22.5]} 10.
Nf3 {[%clk 0:04:32.2]} 10... Nce7 {[%clk 0:04:18.2]} 11. h5 {[%clk 0:04:22.9]}
11... Qc7 {[%clk 0:04:10.9]} 12. h6 {[%clk 0:04:15.4]} 12... g6 {[%clk
0:04:08.5]} 13. Qg5 {[%clk 0:04:11.5]} 13... cxd4 {[%clk 0:03:58.4]} 14. Qf6
{[%clk 0:04:02.2]} 14... Qxc3+ {[%clk 0:03:54.5]} 15. Bd2 {[%clk 0:03:59.4]}
15... Qxa1+ {[%clk 0:03:52]} 16. Ke2 {[%clk 0:03:57.5]} 16... Qxh1 {[%clk
0:03:49]} 17. Bxf5 {[%clk 0:03:55.6]} 17... Nxf5 {[%clk 0:03:46.6]} 18. g4
{[%clk 0:03:54.3]} 1-0

[Event "Live Chess"]
[Site "Chess.com"]
[Date "2023.05.21"]
[Round "-"]
[White "mach247"]
[Black "Ian-Morley"]
[Result "1-0"]
[WhiteElo "1356"]
[BlackElo "1052"]
[TimeControl "300"]
[EndTime "5:09:50 PDT"]
[Termination "mach247 won by resignation"]

1. e4 {[%clk 0:04:59.6]} 1... Nf6 {[%clk 0:04:55.9]} 2. e5 {[%clk 0:04:58.4]}
2... Nd5 {[%clk 0:04:52]} 3. d4 {[%clk 0:04:57.4]} 3... d6 {[%clk 0:04:50.4]} 4.
c4 {[%clk 0:04:56.8]} 4... Nb6 {[%clk 0:04:49.6]} 5. Bf4 {[%clk 0:04:33.9]} 5...
dxe5 {[%clk 0:04:47.6]} 6. Bxe5 {[%clk 0:04:32.6]} 6... e6 {[%clk 0:04:44.8]} 7.
Nc3 {[%clk 0:04:17.8]} 7... Nxc4 {[%clk 0:04:01]} 8. Bxc4 {[%clk 0:04:12.5]}
8... Bd7 {[%clk 0:03:59.2]} 9. Nf3 {[%clk 0:04:03]} 9... Bb4 {[%clk 0:03:43.7]}
10. O-O {[%clk 0:03:47.3]} 10... Bxc3 {[%clk 0:03:40.8]} 11. bxc3 {[%clk
0:03:46.2]} 11... Nc6 {[%clk 0:03:39.1]} 12. Qd3 {[%clk 0:03:22.9]} 12... Nxe5
{[%clk 0:03:36.4]} 13. Nxe5 {[%clk 0:03:22.8]} 13... O-O {[%clk 0:03:30]} 14.
Nxd7 {[%clk 0:03:21.6]} 14... Qxd7 {[%clk 0:03:26.9]} 15. Bb3 {[%clk 0:03:20.8]}
15... a6 {[%clk 0:03:25.5]} 16. Bc2 {[%clk 0:03:20]} 16... g6 {[%clk 0:03:23.7]}
17. Rab1 {[%clk 0:03:18.9]} 17... b5 {[%clk 0:03:22.4]} 18. a4 {[%clk
0:02:59.9]} 18... c5 {[%clk 0:02:04.5]} 19. axb5 {[%clk 0:02:55.5]} 19... cxd4
{[%clk 0:02:02.6]} 20. bxa6 {[%clk 0:02:46.2]} 20... Rfd8 {[%clk 0:01:58.4]} 21.
Rfd1 {[%clk 0:02:38.5]} 21... Ra7 {[%clk 0:01:56.1]} 22. cxd4 {[%clk 0:02:34.2]}
22... e5 {[%clk 0:01:53.7]} 23. dxe5 {[%clk 0:02:31.6]} 23... Qxd3 {[%clk
0:01:51.7]} 24. Rxd3 {[%clk 0:02:30.2]} 24... Rxd3 {[%clk 0:01:48.9]} 25. Bxd3
{[%clk 0:02:29.7]} 25... Rd7 {[%clk 0:01:46.6]} 26. Bf1 {[%clk 0:02:23]} 26...
Ra7 {[%clk 0:01:44.3]} 27. Rb7 {[%clk 0:02:21.9]} 1-0

[Event "Live Chess"]
[Site "Chess.com"]
[Date "2023.05.21"]
[Round "-"]
[White "Berdgross"]
[Black "McSlash1"]
[Result "0-1"]
[WhiteElo "682"]
[BlackElo "2004"]
[TimeControl "300"]
[EndTime "5:09:55 PDT"]
[Termination "McSlash1 won on time"]

1. e4 {[%clk 0:04:56.5]} 1... c5 {[%clk 0:04:59.6]} 2. d3 {[%clk 0:04:55.2]}
2... Nc6 {[%clk 0:04:58.5]} 3. Nf3 {[%clk 0:04:53.3]} 3... g6 {[%clk 0:04:58.2]}
4. Nc3 {[%clk 0:04:49.5]} 4... Bg7 {[%clk 0:04:57.8]} 5. Nd5 {[%clk 0:04:47.5]}
5... e6 {[%clk 0:04:56.7]} 6. Ne3 {[%clk 0:04:43.9]} 6... Nge7 {[%clk 0:04:56]}
7. c3 {[%clk 0:04:39.3]} 7... O-O {[%clk 0:04:55.5]} 8. d4 {[%clk 0:04:36.2]}
8... d5 {[%clk 0:04:54.9]} 9. dxc5 {[%clk 0:04:33.2]} 9... dxe4 {[%clk
0:04:53.4]} 10. Ng5 {[%clk 0:04:22.7]} 10... Nf5 {[%clk 0:04:49.5]} 11. Nxe4
{[%clk 0:04:21]} 11... Qa5 {[%clk 0:04:32.5]} 12. Nxf5 {[%clk 0:04:14.7]} 12...
exf5 {[%clk 0:04:31.5]} 13. b4 {[%clk 0:04:03.7]} 13... Nxb4 {[%clk 0:04:29.1]}
14. cxb4 {[%clk 0:03:58.5]} 14... Qxb4+ {[%clk 0:04:29]} 15. Bd2 {[%clk
0:03:39.6]} 15... Qxe4+ {[%clk 0:04:27]} 16. Qe2 {[%clk 0:03:36.2]} 16... Bxa1
{[%clk 0:04:25.1]} 17. Qxe4 {[%clk 0:03:33.4]} 17... fxe4 {[%clk 0:04:25]} 18.
Bc4 {[%clk 0:03:27.1]} 18... Be6 {[%clk 0:04:19]} 19. Bxe6 {[%clk 0:03:06.5]}
19... fxe6 {[%clk 0:04:18.9]} 20. O-O {[%clk 0:02:51.6]} 20... Bd4 {[%clk
0:04:17.3]} 0-1

[Event "Live Chess"]
[Site "Chess.com"]
[Date "2023.05.21"]
[Round "-"]
[White "domrobson"]
[Black "Leonid_Starozhilov"]
[Result "0-1"]
[WhiteElo "1721"]
[BlackElo "2633"]
[TimeControl "300"]
[EndTime "5:10:08 PDT"]
[Termination "Leonid_Starozhilov won by resignation"]

1. d4 {[%clk 0:04:58.2]} 1... Nf6 {[%clk 0:04:58.8]} 2. c4 {[%clk 0:04:56.9]}
2... g6 {[%clk 0:04:57.8]} 3. Nc3 {[%clk 0:04:54.8]} 3... Bg7 {[%clk 0:04:56]}
4. e4 {[%clk 0:04:54.1]} 4... d6 {[%clk 0:04:53.7]} 5. Be2 {[%clk 0:04:53.6]}
5... O-O {[%clk 0:04:52.8]} 6. Bg5 {[%clk 0:04:52.5]} 6... Na6 {[%clk 0:04:46]}
7. h4 {[%clk 0:04:46.9]} 7... h5 {[%clk 0:04:41.7]} 8. Nf3 {[%clk 0:04:43.2]}
8... Bg4 {[%clk 0:04:31.6]} 9. O-O {[%clk 0:04:41.4]} 9... Bxf3 {[%clk
0:04:28.1]} 10. Bxf3 {[%clk 0:04:39.2]} 10... Nd7 {[%clk 0:04:19]} 11. Be3
{[%clk 0:04:35.4]} 11... e5 {[%clk 0:04:17.2]} 12. d5 {[%clk 0:04:33.3]} 12...
Qxh4 {[%clk 0:04:15.6]} 13. g3 {[%clk 0:04:29.4]} 13... Qe7 {[%clk 0:04:13]} 14.
a3 {[%clk 0:04:27.5]} 14... Kh7 {[%clk 0:04:01.6]} 15. b4 {[%clk 0:04:25.4]}
15... Bh6 {[%clk 0:04:00.6]} 16. Qd2 {[%clk 0:04:23.7]} 16... Bxe3 {[%clk
0:03:58.8]} 17. Qxe3 {[%clk 0:04:22.6]} 17... f5 {[%clk 0:03:50.6]} 18. Kg2
{[%clk 0:04:11.9]} 18... f4 {[%clk 0:03:48.9]} 19. gxf4 {[%clk 0:04:05.6]} 19...
exf4 {[%clk 0:03:46.9]} 20. Qd3 {[%clk 0:04:04.5]} 20... Qg5+ {[%clk 0:03:44.8]}
21. Kh1 {[%clk 0:03:59.8]} 21... Ne5 {[%clk 0:03:44.7]} 22. Qe2 {[%clk
0:03:57.2]} 22... Qh4+ {[%clk 0:03:41.8]} 23. Kg1 {[%clk 0:03:56.1]} 23... Rae8
{[%clk 0:03:36.7]} 24. Rfd1 {[%clk 0:03:49.5]} 24... Nb8 {[%clk 0:03:32.3]} 25.
Kf1 {[%clk 0:03:47.5]} 25... Qh3+ {[%clk 0:03:27.5]} 0-1

[Event "Live Chess"]
[Site "Chess.com"]
[Date "2023.05.21"]
[Round "-"]
[White "MJMykh"]
[Black "KeithArkell"]
[Result "0-1"]
[WhiteElo "1168"]
[BlackElo "2488"]
[TimeControl "300"]
[EndTime "5:10:37 PDT"]
[Termination "KeithArkell won by resignation"]

1. e4 {[%clk 0:04:58.7]} 1... c6 {[%clk 0:04:59]} 2. Nf3 {[%clk 0:04:57]} 2...
d5 {[%clk 0:04:57.7]} 3. Nc3 {[%clk 0:04:56.7]} 3... Bg4 {[%clk 0:04:56.6]} 4.
exd5 {[%clk 0:04:55.7]} 4... cxd5 {[%clk 0:04:55.4]} 5. Be2 {[%clk 0:04:55.2]}
5... Nc6 {[%clk 0:04:54.3]} 6. O-O {[%clk 0:04:54.6]} 6... Nf6 {[%clk
0:04:53.5]} 7. h3 {[%clk 0:04:54.4]} 7... Bxf3 {[%clk 0:04:52.3]} 8. Bxf3 {[%clk
0:04:53.4]} 8... e6 {[%clk 0:04:51.8]} 9. d3 {[%clk 0:04:52.7]} 9... Be7 {[%clk
0:04:51.2]} 10. Bg5 {[%clk 0:04:51.1]} 10... O-O {[%clk 0:04:50]} 11. Bxf6
{[%clk 0:04:50.7]} 11... Bxf6 {[%clk 0:04:49.2]} 12. Qd2 {[%clk 0:04:50.4]}
12... Rc8 {[%clk 0:04:47]} 13. Rab1 {[%clk 0:04:49.5]} 13... Nd4 {[%clk
0:04:45.9]} 14. Be2 {[%clk 0:04:43.6]} 14... Nxc2 {[%clk 0:04:44.2]} 15. Qxc2
{[%clk 0:04:42.2]} 15... d4 {[%clk 0:04:43.7]} 0-1

[Event "Live Chess"]
[Site "Chess.com"]
[Date "2023.05.21"]
[Round "-"]
[White "viktorskliarov"]
[Black "Oleg03082013"]
[Result "1-0"]
[WhiteElo "2648"]
[BlackElo "1147"]
[TimeControl "300"]
[EndTime "5:10:44 PDT"]
[Termination "viktorskliarov won by resignation"]

1. e4 {[%clk 0:04:56.8]} 1... c5 {[%clk 0:04:57.8]} 2. Nf3 {[%clk 0:04:54.2]}
2... d6 {[%clk 0:04:56.4]} 3. d4 {[%clk 0:04:53.3]} 3... cxd4 {[%clk 0:04:52.6]}
4. Qxd4 {[%clk 0:04:52.7]} 4... Nf6 {[%clk 0:04:50.3]} 5. Nc3 {[%clk 0:04:51.3]}
5... g6 {[%clk 0:04:48.5]} 6. e5 {[%clk 0:04:36.1]} 6... dxe5 {[%clk 0:04:41.8]}
7. Qxd8+ {[%clk 0:04:35]} 7... Kxd8 {[%clk 0:04:39.7]} 8. Nxe5 {[%clk
0:04:34.9]} 8... Bg7 {[%clk 0:04:38.6]} 9. Nxf7+ {[%clk 0:04:33.3]} 9... Kc7
{[%clk 0:04:37.4]} 10. Nxh8 {[%clk 0:04:33.2]} 10... Bxh8 {[%clk 0:04:14.2]} 11.
Bf4+ {[%clk 0:04:31.5]} 1-0

[Event "Live Chess"]
[Site "Chess.com"]
[Date "2023.05.21"]
[Round "-"]
[White "Long1968"]
[Black "CeladonFish"]
[Result "0-1"]
[WhiteElo "954"]
[BlackElo "1134"]
[TimeControl "300"]
[EndTime "5:11:19 PDT"]
[Termination "CeladonFish won on time"]

1. e4 {[%clk 0:04:51.6]} 1... d6 {[%clk 0:04:59.2]} 2. d4 {[%clk 0:04:47.8]}
2... Nf6 {[%clk 0:04:58.3]} 3. Nc3 {[%clk 0:04:44.9]} 3... g6 {[%clk 0:04:55.4]}
4. Bc4 {[%clk 0:04:40.3]} 4... Nxe4 {[%clk 0:04:53.1]} 5. Bxf7+ {[%clk
0:04:25.8]} 5... Kxf7 {[%clk 0:04:49.7]} 6. Nxe4 {[%clk 0:04:22.9]} 6... d5
{[%clk 0:04:47.9]} 7. Ng5+ {[%clk 0:04:14.6]} 7... Ke8 {[%clk 0:04:42.5]} 8. Qf3
{[%clk 0:04:08.6]} 8... Bf5 {[%clk 0:04:37.5]} 9. g4 {[%clk 0:03:56.2]} 9... h6
{[%clk 0:04:33.1]} 10. gxf5 {[%clk 0:03:47]} 10... hxg5 {[%clk 0:04:30.9]} 11.
fxg6 {[%clk 0:03:44]} 11... Nc6 {[%clk 0:04:08.5]} 12. Qf7+ {[%clk 0:03:37.1]}
12... Kd7 {[%clk 0:04:07.5]} 13. Qxd5+ {[%clk 0:03:19.5]} 13... Ke8 {[%clk
0:04:04.5]} 14. Qf7+ {[%clk 0:03:10.4]} 14... Kd7 {[%clk 0:04:02.8]} 15. d5
{[%clk 0:03:07.4]} 15... Ne5 {[%clk 0:03:58.4]} 16. Qe6+ {[%clk 0:03:00.9]}
16... Ke8 {[%clk 0:03:56.3]} 17. Qxe5 {[%clk 0:02:56.1]} 17... Rh5 {[%clk
0:03:46.4]} 18. h4 {[%clk 0:02:20.9]} 18... Qd6 {[%clk 0:03:42.4]} 19. Qf5
{[%clk 0:02:00.2]} 19... Qf6 {[%clk 0:03:26.5]} 20. Qxf6 {[%clk 0:01:46.7]}
20... exf6 {[%clk 0:03:24.1]} 21. c4 {[%clk 0:01:28.8]} 21... Bb4+ {[%clk
0:03:21]} 22. Bd2 {[%clk 0:01:22.3]} 22... Bxd2+ {[%clk 0:03:18]} 23. Kxd2
{[%clk 0:01:19.1]} 23... Kf8 {[%clk 0:03:16.8]} 24. Nf3 {[%clk 0:01:06.6]} 24...
g4 {[%clk 0:03:09.9]} 25. Nd4 {[%clk 0:00:56]} 25... Re8 {[%clk 0:03:01.7]} 26.
Ne6+ {[%clk 0:00:52.1]} 26... Kg8 {[%clk 0:02:56.9]} 27. Rae1 {[%clk 0:00:45.3]}
27... Re5 {[%clk 0:02:45.5]} 28. Rxe5 {[%clk 0:00:30.6]} 28... fxe5 {[%clk
0:02:40.9]} 29. Re1 {[%clk 0:00:26.9]} 29... c6 {[%clk 0:02:26.2]} 30. Nc7
{[%clk 0:00:19.2]} 30... Re7 {[%clk 0:02:20.6]} 31. d6 {[%clk 0:00:16]} 31...
Rd7 {[%clk 0:02:15.5]} 32. Rxe5 {[%clk 0:00:10]} 32... Rxd6+ {[%clk 0:02:10.8]}
0-1

[Event "Live Chess"]
[Site "Chess.com"]
[Date "2023.05.21"]
[Round "-"]
[White "McSlash1"]
[Black "srichess4u"]
[Result "1-0"]
[WhiteElo "2004"]
[BlackElo "642"]
[TimeControl "300"]
[EndTime "5:11:22 PDT"]
[Termination "McSlash1 won by checkmate"]

1. e4 {[%clk 0:04:58.9]} 1... e5 {[%clk 0:04:58.4]} 2. Nf3 {[%clk 0:04:57.3]}
2... Nc6 {[%clk 0:04:56.5]} 3. Bc4 {[%clk 0:04:55.6]} 3... Nf6 {[%clk
0:04:51.7]} 4. O-O {[%clk 0:04:53.3]} 4... Nxe4 {[%clk 0:04:49.5]} 5. Re1 {[%clk
0:04:52]} 5... f5 {[%clk 0:04:45.2]} 6. d3 {[%clk 0:04:50.7]} 6... Nd6 {[%clk
0:04:42.6]} 7. Nxe5 {[%clk 0:04:50]} 7... Nxe5 {[%clk 0:04:40.6]} 8. Rxe5+
{[%clk 0:04:49.9]} 8... Be7 {[%clk 0:04:39]} 9. Bg5 {[%clk 0:04:43.2]} 9... Nxc4
{[%clk 0:04:31.8]} 10. Bxe7 {[%clk 0:04:39.8]} 10... Qxe7 {[%clk 0:04:28.2]} 11.
Rxe7+ {[%clk 0:04:39.7]} 11... Kxe7 {[%clk 0:04:27.2]} 12. dxc4 {[%clk
0:04:38.9]} 12... Ke8 {[%clk 0:04:23.1]} 13. Nc3 {[%clk 0:04:36.2]} 13... Kd8
{[%clk 0:04:19.6]} 14. Qh5 {[%clk 0:04:33.6]} 14... g6 {[%clk 0:04:16]} 15. Qg5+
{[%clk 0:04:32.2]} 15... Ke8 {[%clk 0:04:13.9]} 16. Nd5 {[%clk 0:04:31.7]} 16...
c6 {[%clk 0:04:11.7]} 17. Qe7# {[%clk 0:04:30.7]} 1-0

[Event "Live Chess"]
[Site "Chess.com"]
[Date "2023.05.21"]
[Round "-"]
[White "WelshTiger"]
[Black "Biranidun"]
[Result "0-1"]
[WhiteElo "2305"]
[BlackElo "2521"]
[TimeControl "300"]
[EndTime "5:11:44 PDT"]
[Termination "Biranidun won by resignation"]

1. e4 {[%clk 0:04:58.2]} 1... c5 {[%clk 0:04:59.3]} 2. c3 {[%clk 0:04:56.9]}
2... Nf6 {[%clk 0:04:58.3]} 3. e5 {[%clk 0:04:55.8]} 3... Nd5 {[%clk 0:04:57.9]}
4. d4 {[%clk 0:04:55.4]} 4... cxd4 {[%clk 0:04:57.8]} 5. Nf3 {[%clk 0:04:53.8]}
5... d6 {[%clk 0:04:57.3]} 6. Bc4 {[%clk 0:04:51.1]} 6... Nb6 {[%clk 0:04:55.9]}
7. Bb3 {[%clk 0:04:36.1]} 7... Nc6 {[%clk 0:04:51.8]} 8. exd6 {[%clk 0:04:18.6]}
8... Qxd6 {[%clk 0:04:50.5]} 9. O-O {[%clk 0:04:17.3]} 9... Bf5 {[%clk
0:04:41.3]} 10. cxd4 {[%clk 0:04:10.5]} 10... e6 {[%clk 0:04:40.3]} 11. Nc3
{[%clk 0:04:07.4]} 11... Rd8 {[%clk 0:04:37.8]} 12. Be3 {[%clk 0:04:02]} 12...
Be7 {[%clk 0:04:36]} 13. Qe2 {[%clk 0:03:50.3]} 13... O-O {[%clk 0:04:33.3]} 14.
Rad1 {[%clk 0:03:48.1]} 14... Na5 {[%clk 0:04:29.8]} 15. Bc2 {[%clk 0:03:38.8]}
15... Bxc2 {[%clk 0:04:28.3]} 16. Qxc2 {[%clk 0:03:38.3]} 16... Nac4 {[%clk
0:04:24.5]} 17. Bc1 {[%clk 0:03:36.1]} 17... Rc8 {[%clk 0:04:21.3]} 18. Qe2
{[%clk 0:03:35]} 18... Rfd8 {[%clk 0:04:18.3]} 19. Rfe1 {[%clk 0:03:33.5]} 19...
a6 {[%clk 0:04:17]} 20. Ne5 {[%clk 0:03:26.7]} 20... Nxe5 {[%clk 0:04:14.9]} 21.
dxe5 {[%clk 0:03:26.1]} 21... Qc6 {[%clk 0:04:13.6]} 22. Rxd8+ {[%clk
0:03:16.3]} 22... Rxd8 {[%clk 0:04:13.5]} 23. Rd1 {[%clk 0:03:14.7]} 23... Rxd1+
{[%clk 0:04:12.1]} 24. Qxd1 {[%clk 0:03:14.6]} 24... Nc4 {[%clk 0:04:11.2]} 25.
Qd4 {[%clk 0:03:09.3]} 25... b5 {[%clk 0:04:01.7]} 26. b3 {[%clk 0:02:43.7]}
26... Nb6 {[%clk 0:03:53.7]} 27. Bb2 {[%clk 0:02:40.4]} 27... b4 {[%clk
0:03:48.1]} 28. Ne4 {[%clk 0:02:38.5]} 28... Nd5 {[%clk 0:03:47.1]} 29. g3
{[%clk 0:02:26.5]} 29... Qc2 {[%clk 0:03:45.1]} 30. Kg2 {[%clk 0:01:56.8]} 30...
h6 {[%clk 0:03:41.2]} 31. Nd6 {[%clk 0:01:39.8]} 31... Qc6 {[%clk 0:03:20.4]}
32. Ne4 {[%clk 0:01:28.4]} 32... Qc2 {[%clk 0:03:16.8]} 33. Nd6 {[%clk
0:01:26.7]} 33... h5 {[%clk 0:03:15.7]} 34. h4 {[%clk 0:01:18]} 34... a5 {[%clk
0:03:05.7]} 35. Nc4 {[%clk 0:01:13.4]} 35... a4 {[%clk 0:03:00.3]} 36. Qd2
{[%clk 0:01:07]} 36... Qe4+ {[%clk 0:02:56.1]} 37. f3 {[%clk 0:01:05.8]} 37...
Qb1 {[%clk 0:02:53.7]} 38. bxa4 {[%clk 0:01:02.5]} 38... Qxa2 {[%clk 0:02:51.5]}
39. a5 {[%clk 0:01:01.6]} 39... Qxc4 {[%clk 0:02:50.4]} 0-1

[Event "Live Chess"]
[Site "Chess.com"]
[Date "2023.05.21"]
[Round "-"]
[White "Tushinskiy"]
[Black "friarnator"]
[Result "1-0"]
[WhiteElo "2213"]
[BlackElo "2006"]
[TimeControl "300"]
[EndTime "5:11:49 PDT"]
[Termination "Tushinskiy won by resignation"]

1. d4 {[%clk 0:04:53]} 1... Nf6 {[%clk 0:04:58.6]} 2. c3 {[%clk 0:04:52]} 2...
e6 {[%clk 0:04:52.2]} 3. Nf3 {[%clk 0:04:45.8]} 3... d5 {[%clk 0:04:51.1]} 4.
Bf4 {[%clk 0:04:41.2]} 4... Be7 {[%clk 0:04:50]} 5. Nbd2 {[%clk 0:04:37.4]} 5...
O-O {[%clk 0:04:49.4]} 6. e3 {[%clk 0:04:35.3]} 6... c5 {[%clk 0:04:48.4]} 7.
Bd3 {[%clk 0:04:31.7]} 7... Nc6 {[%clk 0:04:45.5]} 8. Qe2 {[%clk 0:04:30.5]}
8... b6 {[%clk 0:04:31.9]} 9. Ne5 {[%clk 0:04:26.7]} 9... Bb7 {[%clk 0:04:25.6]}
10. Bg3 {[%clk 0:04:25.2]} 10... Nd7 {[%clk 0:04:10.3]} 11. f4 {[%clk
0:04:23.4]} 11... f6 {[%clk 0:04:05]} 12. Qh5 {[%clk 0:04:19.5]} 12... f5 {[%clk
0:03:50.7]} 13. h3 {[%clk 0:04:14.3]} 13... Nf6 {[%clk 0:03:48.7]} 14. Qf3
{[%clk 0:04:12.2]} 14... Ne4 {[%clk 0:03:46.3]} 15. Bf2 {[%clk 0:04:11.2]} 15...
Bh4 {[%clk 0:03:18.4]} 16. g3 {[%clk 0:04:07.4]} 16... Bf6 {[%clk 0:03:16.4]}
17. O-O-O {[%clk 0:04:03.6]} 17... cxd4 {[%clk 0:03:12.5]} 18. exd4 {[%clk
0:04:03.5]} 18... Rc8 {[%clk 0:03:11.3]} 19. Kb1 {[%clk 0:04:01.9]} 19... Kh8
{[%clk 0:02:54.6]} 20. g4 {[%clk 0:04:01.1]} 20... Bxe5 {[%clk 0:02:49.2]} 21.
dxe5 {[%clk 0:03:52.9]} 21... g6 {[%clk 0:02:46.8]} 22. gxf5 {[%clk 0:03:50.3]}
22... gxf5 {[%clk 0:02:45.5]} 23. Rhg1 {[%clk 0:03:41.6]} 23... Qe7 {[%clk
0:02:34.4]} 24. Bxe4 {[%clk 0:03:38.4]} 24... fxe4 {[%clk 0:02:16.5]} 25. Qg4
{[%clk 0:03:27.5]} 25... Rg8 {[%clk 0:02:10]} 26. Qh5 {[%clk 0:03:26.2]} 26...
Rxg1 {[%clk 0:01:42.9]} 27. Rxg1 {[%clk 0:03:26.1]} 27... Qe8 {[%clk 0:01:42.1]}
28. Qh6 {[%clk 0:03:22.8]} 28... Rc7 {[%clk 0:01:33.5]} 29. Bh4 {[%clk
0:03:21.4]} 1-0